[Event "*** SCC Grand Prix: Titled Tuesday Blitz"]
[Site "Chess.com"]
[Date "2020.10.06"]
[Round "2"]
[White "karwowskikacper"]
[Black "sokidze"]
[Result "0-1"]
[WhiteElo "2476"]
[BlackElo "2709"]
[TimeControl "180+1"]
[EndTime "10:18:10 PDT"]
[Termination "sokidze won on time"]

1. e4 {[%clk 0:03:00.9]} 1... c5 {[%clk 0:02:59.7]} 2. Nf3 {[%clk 0:02:59.2]}
2... Nc6 {[%clk 0:02:55.2]} 3. c3 {[%clk 0:02:58.7]} 3... Nf6 {[%clk 0:02:54.7]}
4. e5 {[%clk 0:02:58.6]} 4... Nd5 {[%clk 0:02:54.8]} 5. d4 {[%clk 0:02:59.5]}
5... cxd4 {[%clk 0:02:55.1]} 6. cxd4 {[%clk 0:03:00.4]} 6... d6 {[%clk
0:02:55.4]} 7. Bc4 {[%clk 0:02:55]} 7... Nb6 {[%clk 0:02:55.1]} 8. Bb5 {[%clk
0:02:55.4]} 8... dxe5 {[%clk 0:02:55.1]} 9. Nxe5 {[%clk 0:02:54.6]} 9... Bd7
{[%clk 0:02:55]} 10. Nxd7 {[%clk 0:02:50.2]} 10... Qxd7 {[%clk 0:02:55.9]} 11.
O-O {[%clk 0:02:50.6]} 11... Rd8 {[%clk 0:02:46.2]} 12. Qf3 {[%clk 0:02:32.8]}
12... e6 {[%clk 0:02:32.3]} 13. Nc3 {[%clk 0:02:28.2]} 13... a6 {[%clk
0:01:46.4]} 14. Bxc6 {[%clk 0:02:20.4]} 14... bxc6 {[%clk 0:01:46.5]} 15. Rd1
{[%clk 0:02:17.6]} 15... Nd5 {[%clk 0:01:14.5]} 16. Ne4 {[%clk 0:02:12.9]} 16...
f5 {[%clk 0:01:07.3]} 17. Nd2 {[%clk 0:02:06]} 17... Bd6 {[%clk 0:01:05.1]} 18.
Nc4 {[%clk 0:02:03.5]} 18... O-O {[%clk 0:01:04.5]} 19. b3 {[%clk 0:02:02.3]}
19... Bc7 {[%clk 0:01:01.3]} 20. Bb2 {[%clk 0:02:00.5]} 20... Rf6 {[%clk
0:01:00]} 21. Rac1 {[%clk 0:01:59.4]} 21... Rh6 {[%clk 0:00:53.1]} 22. Ne5
{[%clk 0:01:58]} 22... Bxe5 {[%clk 0:00:39.6]} 23. dxe5 {[%clk 0:01:58.9]} 23...
g5 {[%clk 0:00:37.9]} 24. Qe2 {[%clk 0:01:51.5]} 24... Rg6 {[%clk 0:00:31.4]}
25. Qxa6 {[%clk 0:01:44.7]} 25... Rc8 {[%clk 0:00:31.5]} 26. Rc4 {[%clk
0:01:34]} 26... f4 {[%clk 0:00:27.5]} 27. Rdc1 {[%clk 0:01:31.8]} 27... f3
{[%clk 0:00:20]} 28. Rxc6 {[%clk 0:01:23.4]} 28... Rf8 {[%clk 0:00:20]} 29. g3
{[%clk 0:01:16.6]} 29... Nf4 {[%clk 0:00:05.4]} 30. gxf4 {[%clk 0:00:15.9]}
30... gxf4+ {[%clk 0:00:06.3]} 31. Kh1 {[%clk 0:00:16.5]} 31... Qd2 {[%clk
0:00:06.9]} 32. R6c2 {[%clk 0:00:13.4]} 32... Qd5 {[%clk 0:00:06.6]} 33. Qc4
{[%clk 0:00:12.8]} 33... Qd7 {[%clk 0:00:04.6]} 34. Qc7 {[%clk 0:00:12.5]} 34...
Qd3 {[%clk 0:00:04]} 35. Qc4 {[%clk 0:00:11.3]} 35... Qf5 {[%clk 0:00:04.4]} 36.
Rd2 {[%clk 0:00:03.3]} 36... Qh3 {[%clk 0:00:04.1]} 37. Qf1 {[%clk 0:00:02.7]}
37... Rg2 {[%clk 0:00:04.5]} 38. Qg1 {[%clk 0:00:02.3]} 38... Rxg1+ {[%clk
0:00:03.6]} 39. Rxg1+ {[%clk 0:00:03.2]} 39... Kh8 {[%clk 0:00:04.4]} 40. Rd7
{[%clk 0:00:03.7]} 40... Rg8 {[%clk 0:00:04.6]} 41. Rdd1 {[%clk 0:00:01.5]}
41... Rg2 {[%clk 0:00:03.6]} 0-1

[Event "*** SCC Grand Prix: Titled Tuesday Blitz"]
[Site "Chess.com"]
[Date "2020.10.06"]
[Round "2"]
[White "Alexsur1981"]
[Black "GameOverBro"]
[Result "1-0"]
[WhiteElo "2745"]
[BlackElo "2500"]
[TimeControl "180+1"]
[EndTime "10:18:13 PDT"]
[Termination "Alexsur1981 won by resignation"]

1. e4 {[%clk 0:03:00.9]} 1... d6 {[%clk 0:02:59.1]} 2. d4 {[%clk 0:03:00.6]}
2... Nf6 {[%clk 0:02:59.6]} 3. f3 {[%clk 0:03:01.1]} 3... e5 {[%clk 0:02:59.6]}
4. d5 {[%clk 0:03:00.9]} 4... c6 {[%clk 0:02:58.9]} 5. c4 {[%clk 0:03:00.9]}
5... h5 {[%clk 0:02:57.4]} 6. Nc3 {[%clk 0:03:00.2]} 6... a6 {[%clk 0:02:56.8]}
7. Be3 {[%clk 0:02:59.8]} 7... Be7 {[%clk 0:02:57.1]} 8. Qd2 {[%clk 0:02:59.3]}
8... Nbd7 {[%clk 0:02:57.4]} 9. Bd3 {[%clk 0:02:54.2]} 9... h4 {[%clk
0:02:43.1]} 10. Nge2 {[%clk 0:02:52.4]} 10... c5 {[%clk 0:02:37]} 11. a4 {[%clk
0:02:43.7]} 11... Nf8 {[%clk 0:02:35.5]} 12. b3 {[%clk 0:02:37]} 12... Ng6
{[%clk 0:02:35.5]} 13. O-O-O {[%clk 0:02:34.3]} 13... Bd7 {[%clk 0:02:24.8]} 14.
Kc2 {[%clk 0:02:33]} 14... Rb8 {[%clk 0:02:23.9]} 15. Ra1 {[%clk 0:02:31.7]}
15... Nh7 {[%clk 0:02:16.1]} 16. g3 {[%clk 0:02:30.7]} 16... Bg5 {[%clk
0:02:14.4]} 17. f4 {[%clk 0:02:29.8]} 17... Bf6 {[%clk 0:02:11]} 18. f5 {[%clk
0:02:23.4]} 18... Ngf8 {[%clk 0:02:08.4]} 19. Rag1 {[%clk 0:02:15.8]} 19... h3
{[%clk 0:01:54.6]} 20. g4 {[%clk 0:02:10.2]} 20... Bg5 {[%clk 0:01:53.8]} 21.
Rg3 {[%clk 0:02:09.2]} 21... Bxe3 {[%clk 0:01:46]} 22. Qxe3 {[%clk 0:02:10.1]}
22... Ng5 {[%clk 0:01:41.8]} 23. Ng1 {[%clk 0:02:09.3]} 23... Rh4 {[%clk
0:01:25]} 24. Be2 {[%clk 0:02:04.3]} 24... Nfh7 {[%clk 0:01:12.3]} 25. Nxh3
{[%clk 0:02:01.5]} 25... Qf6 {[%clk 0:00:58.1]} 26. Nf2 {[%clk 0:01:50.2]} 26...
Ke7 {[%clk 0:00:56]} 27. a5 {[%clk 0:01:45.1]} 27... Qh6 {[%clk 0:00:53.9]} 28.
h3 {[%clk 0:01:41.5]} 28... Nf6 {[%clk 0:00:51.9]} 29. Rb1 {[%clk 0:01:27.1]}
29... Rh8 {[%clk 0:00:48.4]} 30. Bf1 {[%clk 0:01:27.1]} 30... Rc8 {[%clk
0:00:32]} 31. b4 {[%clk 0:01:20.6]} 31... cxb4 {[%clk 0:00:29.2]} 32. Rxb4
{[%clk 0:01:21.5]} 32... Rc7 {[%clk 0:00:29.6]} 33. Rb6 {[%clk 0:01:10.2]} 33...
Ne8 {[%clk 0:00:24.8]} 34. Kb3 {[%clk 0:00:40.6]} 34... f6 {[%clk 0:00:17.9]}
35. Nd3 {[%clk 0:00:35.1]} 35... Nf7 {[%clk 0:00:16.4]} 36. c5 {[%clk
0:00:33.2]} 36... Qxe3 {[%clk 0:00:15.9]} 37. cxd6+ {[%clk 0:00:30.3]} 37...
Nexd6 {[%clk 0:00:14.4]} 38. Rxe3 {[%clk 0:00:30.7]} 38... Ng5 {[%clk
0:00:14.3]} 39. Nf2 {[%clk 0:00:28.6]} 39... Bc8 {[%clk 0:00:13.5]} 40. Na2
{[%clk 0:00:24.4]} 40... Rc5 {[%clk 0:00:13.5]} 41. Rc3 {[%clk 0:00:18.3]} 41...
Rxc3+ {[%clk 0:00:13.3]} 42. Nxc3 {[%clk 0:00:19.2]} 42... Ngxe4 {[%clk
0:00:13.8]} 43. Nfxe4 {[%clk 0:00:18.8]} 43... Nxe4 {[%clk 0:00:14.1]} 44. Nxe4
{[%clk 0:00:18.6]} 44... Kd7 {[%clk 0:00:14]} 45. Nc5+ {[%clk 0:00:18.3]} 45...
Kc7 {[%clk 0:00:14.3]} 46. d6+ {[%clk 0:00:18.8]} 46... Kd8 {[%clk 0:00:14.5]}
47. d7 {[%clk 0:00:19.4]} 47... Bxd7 {[%clk 0:00:14.5]} 48. Rd6 {[%clk
0:00:19.9]} 48... Kc7 {[%clk 0:00:14.1]} 49. Rxd7+ {[%clk 0:00:20.3]} 49... Kc6
{[%clk 0:00:15]} 50. Re7 {[%clk 0:00:20.9]} 50... Kxc5 {[%clk 0:00:15.3]} 51.
Rxg7 {[%clk 0:00:21.1]} 51... e4 {[%clk 0:00:15.1]} 52. Rxb7 {[%clk 0:00:20.1]}
52... Kd4 {[%clk 0:00:16]} 53. Rb6 {[%clk 0:00:19.8]} 53... e3 {[%clk
0:00:14.9]} 54. Rxa6 {[%clk 0:00:19.9]} 54... Rxh3 {[%clk 0:00:15.1]} 55. Bxh3
{[%clk 0:00:17.9]} 55... e2 {[%clk 0:00:15.6]} 56. Re6 {[%clk 0:00:17.9]} 56...
Kd3 {[%clk 0:00:15]} 57. a6 {[%clk 0:00:17.7]} 1-0

[Event "*** SCC Grand Prix: Titled Tuesday Blitz"]
[Site "Chess.com"]
[Date "2020.10.06"]
[Round "2"]
[White "vanyakuba"]
[Black "RobertoJBM"]
[Result "0-1"]
[WhiteElo "2489"]
[BlackElo "2733"]
[TimeControl "180+1"]
[EndTime "10:18:14 PDT"]
[Termination "RobertoJBM won on time"]

1. e4 {[%clk 0:03:00.9]} 1... c6 {[%clk 0:02:59.6]} 2. d4 {[%clk 0:02:54.8]}
2... d5 {[%clk 0:03:00.5]} 3. exd5 {[%clk 0:02:54.8]} 3... cxd5 {[%clk
0:03:00.1]} 4. c4 {[%clk 0:02:55.3]} 4... Nf6 {[%clk 0:02:59.4]} 5. Nc3 {[%clk
0:02:55.5]} 5... e6 {[%clk 0:02:58.8]} 6. Nf3 {[%clk 0:02:53.2]} 6... Be7 {[%clk
0:02:58.1]} 7. cxd5 {[%clk 0:02:52.7]} 7... Nxd5 {[%clk 0:02:59]} 8. Bd3 {[%clk
0:02:52.9]} 8... Nc6 {[%clk 0:02:59.3]} 9. O-O {[%clk 0:02:52.9]} 9... O-O
{[%clk 0:02:59.7]} 10. Re1 {[%clk 0:02:49.1]} 10... Nf6 {[%clk 0:02:56.8]} 11.
a3 {[%clk 0:02:47.1]} 11... b6 {[%clk 0:02:54.9]} 12. Bc2 {[%clk 0:02:47.3]}
12... Ba6 {[%clk 0:02:54.6]} 13. Bb3 {[%clk 0:02:40]} 13... Na5 {[%clk
0:02:52.4]} 14. Bc2 {[%clk 0:02:28.4]} 14... Rc8 {[%clk 0:02:51.2]} 15. Ne5
{[%clk 0:02:28.1]} 15... Nc4 {[%clk 0:02:48.1]} 16. Nxc4 {[%clk 0:02:10.6]}
16... Bxc4 {[%clk 0:02:47.6]} 17. Bg5 {[%clk 0:01:50.9]} 17... Nd5 {[%clk
0:02:41.3]} 18. Bxe7 {[%clk 0:01:49.3]} 18... Nxe7 {[%clk 0:02:36.4]} 19. Qg4
{[%clk 0:01:44.4]} 19... Nd5 {[%clk 0:02:21.6]} 20. Qh3 {[%clk 0:01:38.8]} 20...
g6 {[%clk 0:02:19.7]} 21. Ne4 {[%clk 0:01:35.2]} 21... Nf6 {[%clk 0:02:17.3]}
22. Rad1 {[%clk 0:00:56.1]} 22... Nxe4 {[%clk 0:02:10.4]} 23. Bxe4 {[%clk
0:00:57]} 23... Qf6 {[%clk 0:02:07]} 24. b3 {[%clk 0:00:47.6]} 24... Bb5 {[%clk
0:01:59.8]} 25. d5 {[%clk 0:00:38.4]} 25... exd5 {[%clk 0:01:56.4]} 26. Bxd5
{[%clk 0:00:38]} 26... Rc3 {[%clk 0:01:44.8]} 27. Qg4 {[%clk 0:00:31.9]} 27...
Rfc8 {[%clk 0:01:31.5]} 28. h4 {[%clk 0:00:20.7]} 28... h5 {[%clk 0:01:29]} 29.
Qd4 {[%clk 0:00:20.1]} 29... Qxd4 {[%clk 0:01:26.6]} 30. Rxd4 {[%clk 0:00:21]}
30... Rc1 {[%clk 0:01:20.9]} 31. Rxc1 {[%clk 0:00:20]} 31... Rxc1+ {[%clk
0:01:21.8]} 32. Kh2 {[%clk 0:00:20.6]} 32... Rc7 {[%clk 0:01:15.7]} 33. Kg3
{[%clk 0:00:20]} 33... Kg7 {[%clk 0:01:14.6]} 34. Kf4 {[%clk 0:00:18]} 34... Kf6
{[%clk 0:01:13.5]} 35. f3 {[%clk 0:00:16.4]} 35... Bd7 {[%clk 0:01:12.6]} 36. g4
{[%clk 0:00:16.1]} 36... hxg4 {[%clk 0:01:12.5]} 37. fxg4 {[%clk 0:00:17]} 37...
Rc1 {[%clk 0:00:58.4]} 38. Bf3 {[%clk 0:00:09.4]} 38... Be6 {[%clk 0:00:56.1]}
39. h5 {[%clk 0:00:08.6]} 39... g5+ {[%clk 0:00:54.4]} 40. Ke3 {[%clk
0:00:06.5]} 40... Rc3+ {[%clk 0:00:54.7]} 41. Kf2 {[%clk 0:00:04.9]} 41... Rxb3
{[%clk 0:00:53.5]} 42. a4 {[%clk 0:00:04.9]} 42... Ra3 {[%clk 0:00:52]} 43. Rb4
{[%clk 0:00:04.1]} 43... Bd7 {[%clk 0:00:49.7]} 44. Rd4 {[%clk 0:00:03.8]} 44...
Be6 {[%clk 0:00:44.5]} 45. Rb4 {[%clk 0:00:03.9]} 45... Kg7 {[%clk 0:00:38.8]}
46. Rd4 {[%clk 0:00:03.7]} 46... Rb3 {[%clk 0:00:31.1]} 47. Be2 {[%clk
0:00:03.5]} 47... Kf6 {[%clk 0:00:28.2]} 48. Ke1 {[%clk 0:00:01.2]} 48... Ke5
{[%clk 0:00:25.8]} 49. Rd8 {[%clk 0:00:01.4]} 49... Rh3 {[%clk 0:00:20.5]} 0-1

[Event "*** SCC Grand Prix: Titled Tuesday Blitz"]
[Site "Chess.com"]
[Date "2020.10.06"]
[Round "2"]
[White "DamianoLew95"]
[Black "GM_Levan_Pantsulaia"]
[Result "1/2-1/2"]
[WhiteElo "2543"]
[BlackElo "2794"]
[TimeControl "180+1"]
[EndTime "10:18:15 PDT"]
[Termination "Game drawn by stalemate"]

1. Nf3 {[%clk 0:02:59.3]} 1... c5 {[%clk 0:02:59]} 2. b3 {[%clk 0:02:59.9]} 2...
b6 {[%clk 0:02:57.5]} 3. Bb2 {[%clk 0:03:00.4]} 3... Bb7 {[%clk 0:02:58.4]} 4.
g3 {[%clk 0:03:01]} 4... Nf6 {[%clk 0:02:56]} 5. Bg2 {[%clk 0:03:01.2]} 5... e6
{[%clk 0:02:56.5]} 6. O-O {[%clk 0:03:01.1]} 6... Be7 {[%clk 0:02:57.1]} 7. e3
{[%clk 0:03:01.6]} 7... O-O {[%clk 0:02:56.9]} 8. Qe2 {[%clk 0:03:02.1]} 8... d6
{[%clk 0:02:45.4]} 9. c4 {[%clk 0:03:02]} 9... Nbd7 {[%clk 0:02:45.5]} 10. Rd1
{[%clk 0:03:01.4]} 10... Re8 {[%clk 0:02:43.6]} 11. d4 {[%clk 0:03:01.2]} 11...
cxd4 {[%clk 0:02:43.9]} 12. Nxd4 {[%clk 0:02:56.9]} 12... Bxg2 {[%clk
0:02:43.5]} 13. Kxg2 {[%clk 0:02:57.8]} 13... Qc7 {[%clk 0:02:43.3]} 14. Kg1
{[%clk 0:02:52.6]} 14... a6 {[%clk 0:02:42.7]} 15. Nd2 {[%clk 0:02:51.7]} 15...
Rac8 {[%clk 0:02:41.5]} 16. Rac1 {[%clk 0:02:51.4]} 16... Bf8 {[%clk 0:02:40.7]}
17. Qf3 {[%clk 0:02:51.2]} 17... Ne5 {[%clk 0:02:39.6]} 18. Qe2 {[%clk
0:02:51.3]} 18... Nfd7 {[%clk 0:02:36.5]} 19. N2f3 {[%clk 0:02:47.4]} 19... Qb7
{[%clk 0:02:35.1]} 20. Nxe5 {[%clk 0:02:46.7]} 20... Nxe5 {[%clk 0:02:35.2]} 21.
f4 {[%clk 0:02:47]} 21... Nd7 {[%clk 0:02:31.9]} 22. Qg4 {[%clk 0:02:36.6]}
22... Nf6 {[%clk 0:02:23]} 23. Qf3 {[%clk 0:02:34.8]} 23... Ne4 {[%clk 0:02:16]}
24. Ne2 {[%clk 0:02:29.8]} 24... Qa8 {[%clk 0:02:02.8]} 25. Nc3 {[%clk
0:02:23.4]} 25... Nc5 {[%clk 0:01:34.1]} 26. Qxa8 {[%clk 0:02:24.3]} 26... Rxa8
{[%clk 0:01:34.5]} 27. Ba3 {[%clk 0:02:19.6]} 27... Rec8 {[%clk 0:01:33.2]} 28.
Rd2 {[%clk 0:02:09.6]} 28... f5 {[%clk 0:01:32.4]} 29. Bxc5 {[%clk 0:01:35]}
29... Rxc5 {[%clk 0:01:31.4]} 30. e4 {[%clk 0:01:31.5]} 30... g6 {[%clk
0:01:30.2]} 31. exf5 {[%clk 0:01:23]} 31... gxf5 {[%clk 0:01:31.1]} 32. Ne2
{[%clk 0:01:23.2]} 32... Kf7 {[%clk 0:01:25.1]} 33. Rcd1 {[%clk 0:01:14.9]}
33... b5 {[%clk 0:01:19.4]} 34. cxb5 {[%clk 0:01:09.1]} 34... axb5 {[%clk
0:01:20.3]} 35. Nd4 {[%clk 0:00:58.7]} 35... Bg7 {[%clk 0:00:52.2]} 36. b4
{[%clk 0:00:51.1]} 36... Bxd4+ {[%clk 0:00:40]} 37. Rxd4 {[%clk 0:00:52]} 37...
Rc6 {[%clk 0:00:40]} 38. Rxd6 {[%clk 0:00:49.5]} 38... Rc2 {[%clk 0:00:27.1]}
39. R1d2 {[%clk 0:00:46.5]} 39... Raxa2 {[%clk 0:00:27.2]} 40. Rxc2 {[%clk
0:00:46.6]} 40... Rxc2 {[%clk 0:00:27.7]} 41. Rb6 {[%clk 0:00:47.2]} 41... Rb2
{[%clk 0:00:21.8]} 42. Rxb5 {[%clk 0:00:47.4]} 42... Kg6 {[%clk 0:00:22.1]} 43.
Rb6 {[%clk 0:00:44.7]} 43... Kh5 {[%clk 0:00:20]} 44. h3 {[%clk 0:00:45.1]}
44... h6 {[%clk 0:00:15.2]} 45. Rxe6 {[%clk 0:00:38.7]} 45... Rxb4 {[%clk
0:00:12.6]} 46. Rf6 {[%clk 0:00:38.5]} 46... Rb1+ {[%clk 0:00:09.5]} 47. Kf2
{[%clk 0:00:37.1]} 47... Rb2+ {[%clk 0:00:09.6]} 48. Ke1 {[%clk 0:00:22.7]}
48... Re2+ {[%clk 0:00:09.2]} 49. Kxe2 {[%clk 0:00:18.2]} 1/2-1/2

[Event "*** SCC Grand Prix: Titled Tuesday Blitz"]
[Site "Chess.com"]
[Date "2020.10.06"]
[Round "2"]
[White "DenisQ"]
[Black "Kaslask"]
[Result "1-0"]
[WhiteElo "2657"]
[BlackElo "2333"]
[TimeControl "180+1"]
[EndTime "10:18:15 PDT"]
[Termination "DenisQ won by resignation"]

1. Nf3 {[%clk 0:02:59.6]} 1... Nf6 {[%clk 0:02:56.7]} 2. c4 {[%clk 0:02:58.3]}
2... e6 {[%clk 0:02:53]} 3. Nc3 {[%clk 0:02:58.3]} 3... d5 {[%clk 0:02:52]} 4.
d4 {[%clk 0:02:57.8]} 4... Nbd7 {[%clk 0:02:51.6]} 5. Bf4 {[%clk 0:02:56.1]}
5... dxc4 {[%clk 0:02:50.8]} 6. e3 {[%clk 0:02:55.2]} 6... b5 {[%clk 0:02:48.8]}
7. Nxb5 {[%clk 0:02:52.7]} 7... Bb4+ {[%clk 0:02:39.4]} 8. Nc3 {[%clk
0:02:50.5]} 8... Nd5 {[%clk 0:02:38]} 9. Rc1 {[%clk 0:02:47.2]} 9... Nxf4 {[%clk
0:02:35.3]} 10. exf4 {[%clk 0:02:46.8]} 10... Nb6 {[%clk 0:02:25.9]} 11. Bxc4
{[%clk 0:02:43.2]} 11... O-O {[%clk 0:02:23]} 12. Be2 {[%clk 0:02:36.1]} 12...
c5 {[%clk 0:02:19.4]} 13. dxc5 {[%clk 0:02:33.5]} 13... Qxd1+ {[%clk 0:02:17]}
14. Bxd1 {[%clk 0:02:29.8]} 14... Bxc5 {[%clk 0:02:14.1]} 15. O-O {[%clk
0:02:26.5]} 15... Ba6 {[%clk 0:02:11.9]} 16. Be2 {[%clk 0:02:26]} 16... Bxe2
{[%clk 0:02:09.6]} 17. Nxe2 {[%clk 0:02:25.4]} 17... Rac8 {[%clk 0:02:09]} 18.
g3 {[%clk 0:02:22.3]} 18... Nd5 {[%clk 0:02:08]} 19. a3 {[%clk 0:02:16.3]} 19...
Rfd8 {[%clk 0:02:06.3]} 20. Kg2 {[%clk 0:02:13.9]} 20... Be3 {[%clk 0:01:43.3]}
21. Rxc8 {[%clk 0:02:01.2]} 21... Rxc8 {[%clk 0:01:42]} 22. Nfd4 {[%clk
0:01:56.6]} 22... Bxd4 {[%clk 0:01:35.2]} 23. Nxd4 {[%clk 0:01:57.5]} 23... Rc4
{[%clk 0:01:33.5]} 24. Rd1 {[%clk 0:01:56.1]} 24... Kf8 {[%clk 0:01:32.1]} 25.
f5 {[%clk 0:01:49.6]} 25... Ke7 {[%clk 0:01:28.3]} 26. fxe6 {[%clk 0:01:49.1]}
26... fxe6 {[%clk 0:01:25.9]} 27. Nf5+ {[%clk 0:01:46.2]} 27... Kf6 {[%clk
0:01:12.8]} 28. Nd6 {[%clk 0:01:45.2]} 28... Rc2 {[%clk 0:01:11.3]} 29. Rd2
{[%clk 0:01:45]} 29... Rxd2 {[%clk 0:01:07.3]} 30. Ne4+ {[%clk 0:01:43.4]} 30...
Ke5 {[%clk 0:01:07.6]} 31. Nxd2 {[%clk 0:01:43.9]} 31... Kd4 {[%clk 0:01:07.7]}
32. Kf3 {[%clk 0:01:41.1]} 32... Kd3 {[%clk 0:01:06.9]} 33. Ne4 {[%clk
0:01:40.8]} 33... Kc2 {[%clk 0:01:06.9]} 34. Nc5 {[%clk 0:01:17.9]} 34... Kxb2
{[%clk 0:01:05.2]} 35. a4 {[%clk 0:01:15.4]} 35... Ka3 {[%clk 0:01:02.1]} 36.
Ke4 {[%clk 0:01:13.7]} 36... Nc3+ {[%clk 0:00:59.3]} 37. Kd3 {[%clk 0:01:08.3]}
37... Nxa4 {[%clk 0:00:58.3]} 38. Nxe6 {[%clk 0:01:08.4]} 38... Kb2 {[%clk
0:00:48.4]} 39. Nxg7 {[%clk 0:01:07.4]} 39... Nb6 {[%clk 0:00:48]} 40. Ne6
{[%clk 0:00:47.2]} 40... Kb3 {[%clk 0:00:43.7]} 41. f4 {[%clk 0:00:44.1]} 41...
a5 {[%clk 0:00:40.4]} 42. f5 {[%clk 0:00:43.5]} 42... a4 {[%clk 0:00:37.6]} 43.
Nc5+ {[%clk 0:00:38.4]} 43... Kb4 {[%clk 0:00:37.3]} 44. Nxa4 {[%clk 0:00:37.4]}
44... Nxa4 {[%clk 0:00:36.9]} 45. f6 {[%clk 0:00:35.6]} 45... Nc5+ {[%clk
0:00:32.9]} 46. Kd4 {[%clk 0:00:35.3]} 46... Ne6+ {[%clk 0:00:27.1]} 47. Kd5
{[%clk 0:00:33.1]} 47... Nf8 {[%clk 0:00:26.9]} 48. h4 {[%clk 0:00:30.3]} 48...
Kc3 {[%clk 0:00:26.3]} 49. h5 {[%clk 0:00:29.9]} 49... Kd3 {[%clk 0:00:25.9]}
50. Kd6 {[%clk 0:00:28.4]} 50... h6 {[%clk 0:00:20]} 51. Ke7 {[%clk 0:00:28.3]}
51... Nh7 {[%clk 0:00:19.7]} 52. f7 {[%clk 0:00:27.5]} 52... Ke4 {[%clk
0:00:19.3]} 53. f8=Q {[%clk 0:00:25.5]} 53... Nxf8 {[%clk 0:00:18.5]} 54. Kxf8
{[%clk 0:00:26]} 54... Kf5 {[%clk 0:00:17.3]} 55. Kg7 {[%clk 0:00:26.1]} 55...
Kg5 {[%clk 0:00:16]} 56. g4 {[%clk 0:00:26.3]} 56... Kxg4 {[%clk 0:00:15.1]} 57.
Kxh6 {[%clk 0:00:26.6]} 57... Kf5 {[%clk 0:00:14.2]} 58. Kg7 {[%clk 0:00:26.9]}
1-0

[Event "*** SCC Grand Prix: Titled Tuesday Blitz"]
[Site "Chess.com"]
[Date "2020.10.06"]
[Round "2"]
[White "abhidabhi"]
[Black "StiffMaster1"]
[Result "1/2-1/2"]
[WhiteElo "2766"]
[BlackElo "2526"]
[TimeControl "180+1"]
[EndTime "10:18:16 PDT"]
[Termination "Game drawn by repetition"]

1. Nf3 {[%clk 0:03:00.9]} 1... g6 {[%clk 0:02:59.2]} 2. g3 {[%clk 0:02:59.8]}
2... Bg7 {[%clk 0:03:00.1]} 3. Bg2 {[%clk 0:03:00.1]} 3... d6 {[%clk 0:03:00]}
4. c4 {[%clk 0:02:58.8]} 4... e5 {[%clk 0:03:00.1]} 5. Nc3 {[%clk 0:02:59.1]}
5... Ne7 {[%clk 0:03:00.1]} 6. d3 {[%clk 0:02:59.4]} 6... O-O {[%clk 0:03:00.5]}
7. h4 {[%clk 0:02:56.6]} 7... h5 {[%clk 0:02:58.1]} 8. Bg5 {[%clk 0:02:38.6]}
8... c6 {[%clk 0:02:57.7]} 9. Qd2 {[%clk 0:02:38]} 9... a6 {[%clk 0:02:57.3]}
10. d4 {[%clk 0:02:32.2]} 10... f6 {[%clk 0:02:54.5]} 11. Bh6 {[%clk 0:02:32.1]}
11... Be6 {[%clk 0:02:49.9]} 12. b3 {[%clk 0:02:28.2]} 12... Qa5 {[%clk
0:02:42.3]} 13. Bxg7 {[%clk 0:02:26.3]} 13... Kxg7 {[%clk 0:02:43.2]} 14. O-O
{[%clk 0:02:22.9]} 14... Qc7 {[%clk 0:02:34.9]} 15. Rac1 {[%clk 0:02:20.1]}
15... Nd7 {[%clk 0:02:33.1]} 16. Rfd1 {[%clk 0:02:12.5]} 16... Rad8 {[%clk
0:02:33.2]} 17. d5 {[%clk 0:01:52.3]} 17... cxd5 {[%clk 0:02:27.4]} 18. cxd5
{[%clk 0:01:52.1]} 18... Bg4 {[%clk 0:02:25]} 19. Nh2 {[%clk 0:01:44.3]} 19...
Nb8 {[%clk 0:01:59.7]} 20. Na4 {[%clk 0:01:36.6]} 20... Qd7 {[%clk 0:01:59.1]}
21. Rc3 {[%clk 0:01:20.8]} 21... b5 {[%clk 0:01:56]} 22. Nb2 {[%clk 0:01:11.9]}
22... Bh3 {[%clk 0:01:24.3]} 23. Rdc1 {[%clk 0:01:06.6]} 23... Rc8 {[%clk
0:01:03.5]} 24. Bxh3 {[%clk 0:01:05.5]} 24... Qxh3 {[%clk 0:00:59.4]} 25. Rc7
{[%clk 0:01:05.5]} 25... Rxc7 {[%clk 0:00:51.1]} 26. Rxc7 {[%clk 0:01:06.4]}
26... Rf7 {[%clk 0:00:48.5]} 27. Qb4 {[%clk 0:00:53.8]} 27... Nf5 {[%clk
0:00:13.1]} 28. Rxf7+ {[%clk 0:00:32.1]} 28... Kxf7 {[%clk 0:00:14]} 29. Nf3
{[%clk 0:00:27.8]} 29... Nd7 {[%clk 0:00:12.5]} 30. Qc3 {[%clk 0:00:26.4]} 30...
Nc5 {[%clk 0:00:12.3]} 31. b4 {[%clk 0:00:23.1]} 31... Ne4 {[%clk 0:00:12.6]}
32. Qc7+ {[%clk 0:00:22.7]} 32... Kg8 {[%clk 0:00:13.2]} 33. Qc8+ {[%clk
0:00:21]} 33... Kh7 {[%clk 0:00:13.2]} 34. Qd7+ {[%clk 0:00:17]} 34... Kh6
{[%clk 0:00:13.4]} 35. Nd3 {[%clk 0:00:14.2]} 35... Nexg3 {[%clk 0:00:10.4]} 36.
fxg3 {[%clk 0:00:12.5]} 36... Qxg3+ {[%clk 0:00:10.9]} 37. Kh1 {[%clk
0:00:12.8]} 37... Ne3 {[%clk 0:00:05.4]} 38. Nde1 {[%clk 0:00:10.8]} 38... Ng4
{[%clk 0:00:05.8]} 39. Nd3 {[%clk 0:00:05.3]} 39... Ne3 {[%clk 0:00:02]} 40.
Nde1 {[%clk 0:00:03.9]} 40... Ng4 {[%clk 0:00:02.5]} 41. Nd3 {[%clk 0:00:02.7]}
41... Ne3 {[%clk 0:00:02.9]} 1/2-1/2